Workbook

Sheet Setting (hidden)
A2: Memo Travel Company | B2: Answer Safari | C2: Aqua Dight | D2: Fire SeaScope | E2: Follow Aqua Boda | F2: Apolly Divers | G2: Lottery Diving Club | I2: Luba Center | J2: Panorama Kabeer | P2: Nourse Safary
A3: Transfer (AirPort) | C3: Private Boat Fishing | D3: Rusalka | E3: Utopia Island | F3: Private Boat Fishing | G3: Intro Diving-Diving | I3: Scuba Trip | J3: Rusalka | P3: Mega Safari | AU3: Answer Safari
A4: Transfer (Excursion) | C4: Port Ghaleb | E4: Royal Utopia | F4: Port Ghaleb | G4: Intro Diving-Snorkeling | I4: Super Scuba | P4: Moto 3 Hours | AU4: Aqua Dight
A5: Flight Crew | C5: Intro Diving-Diving | E5: El Gouna Deluxe | F5: Pirates 3 X1 | G5: Open Water Course HRG | I5: Private Boat Fishing | P5: Moto 5 Hours | AU5: Fire SeaScope
A6: Tips | C6: Intro Diving-Snorkeling | E6: Sunset Boat | F6: Intro Diving-Diving | G6: Advanced Course HRG | I6: Individual Super Scuba | P6: Super Safari | AU6: Follow Aqua Boda
E7: Snorkeling (Coral Reef) | F7: Intro Diving-Snorkeling | G7: Private Boat Fishing | I7: Extra Cost | P7: Individual Moto 3 | AU7: Apolly Divers
E8: All In One | G8: Extra Cost | I8: National Park Fees | P8: Individual Moto 5 | AU8: Lottery Diving Club
E9: Fishing Trip | P9: Individual Super Safari | AU9: Luba Center
E10: Fishing Deluxe | P10: Safari Fees | AU10: Panorama Kabeer
E11: Scuba Trip | AU11: Nourse Safary
E12: Super Scuba | AU12: Memo Travel Company
E13: Private Boat Fishing
E14: Individual Royal Utopia
E15: Private Sunset Boat
E16: National Park Fees

Sheet Summary
D1: Total | L1: Total L.E | M1: Total $
A2: SER. | B2: Supplier Name | C2: Trip Name | D2: L.E | E2: $ | F2: Transfer | G2: Discount | H2: Kick Back | I2: Vat 14% | J2: Tax Discount 3% | K2: Grand Total
A3: =IF($B3="","",SUBTOTAL(3,$B$3:B3)) -> 1 | B3: Answer Safari | D3: 5000 | I3: 700 | J3: -150 | K3: 5550
A4: =IF($B4="","",SUBTOTAL(3,$B$3:B4)) -> 2 | B4: Aqua Dight | C4: Intro Diving-Snorkeling | D4: 5650 | G4: 282.5 | I4: 0 | J4: -161.025 | K4: 5206.475
A5: =IF($B5="","",SUBTOTAL(3,$B$3:B5)) -> 3 | B5: Fire SeaScope | C5: Rusalka | D5: =6120+450+450 -> 7020 | F5: 1155 | H5: 490.5 | I5: 1075.83 | J5: 230.54 | K5: 8529.8
A6: =IF($B6="","",SUBTOTAL(3,$B$3:B6)) -> 4 | B6: Follow Aqua Boda | C6: Snorkeling (Coral Reef) | D6: 6650 | F6: 2520 | G6: 917 | I6: 0 | J6: -247.59 | K6: 8005.41
A7: =IF($B7="","",SUBTOTAL(3,$B$3:B7)) -> 5 | B7: Follow Aqua Boda | C7: National Park Fees | E7: 180 | K7: 180
A8: =IF($B8="","",SUBTOTAL(3,$B$3:B8)) -> 
A9: =IF($B9="","",SUBTOTAL(3,$B$3:B9)) -> 
A10: =IF($B10="","",SUBTOTAL(3,$B$3:B10)) -> 
A11: =IF($B11="","",SUBTOTAL(3,$B$3:B11)) -> 
A12: =IF($B12="","",SUBTOTAL(3,$B$3:B12)) -> 
A13: =IF($B13="","",SUBTOTAL(3,$B$3:B13)) -> 
A14: =IF($B14="","",SUBTOTAL(3,$B$3:B14)) -> 
A15: =IF($B15="","",SUBTOTAL(3,$B$3:B15)) -> 
A16: =IF($B16="","",SUBTOTAL(3,$B$3:B16)) -> 
A17: =IF($B17="","",SUBTOTAL(3,$B$3:B17)) -> 
A18: =IF($B18="","",SUBTOTAL(3,$B$3:B18)) -> 
A19: =IF($B19="","",SUBTOTAL(3,$B$3:B19)) -> 
A20: =IF($B20="","",SUBTOTAL(3,$B$3:B20)) -> 
A21: =IF($B21="","",SUBTOTAL(3,$B$3:B21)) -> 
A22: =IF($B22="","",SUBTOTAL(3,$B$3:B22)) -> 
A23: =IF($B23="","",SUBTOTAL(3,$B$3:B23)) -> 
A24: =IF($B24="","",SUBTOTAL(3,$B$3:B24)) -> 
A25: =IF($B25="","",SUBTOTAL(3,$B$3:B25)) -> 
A26: =IF($B26="","",SUBTOTAL(3,$B$3:B26)) -> 
A27: =IF($B27="","",SUBTOTAL(3,$B$3:B27)) -> 
A28: =IF($B28="","",SUBTOTAL(3,$B$3:B28)) -> 
A29: =IF($B29="","",SUBTOTAL(3,$B$3:B29)) -> 
A30: =IF($B30="","",SUBTOTAL(3,$B$3:B30)) -> 
A31: =IF($B31="","",SUBTOTAL(3,$B$3:B31)) -> 
A32: =IF($B32="","",SUBTOTAL(3,$B$3:B32)) -> 
A33: =IF($B33="","",SUBTOTAL(3,$B$3:B33)) -> 
A34: =IF($B34="","",SUBTOTAL(3,$B$3:B34)) -> 
A35: =IF($B35="","",SUBTOTAL(3,$B$3:B35)) -> 
A36: =IF($B36="","",SUBTOTAL(3,$B$3:B36)) -> 
A37: =IF($B37="","",SUBTOTAL(3,$B$3:B37)) -> 
A38: =IF($B38="","",SUBTOTAL(3,$B$3:B38)) -> 
A39: =IF($B39="","",SUBTOTAL(3,$B$3:B39)) -> 
A40: =IF($B40="","",SUBTOTAL(3,$B$3:B40)) -> 
A41: =IF($B41="","",SUBTOTAL(3,$B$3:B41)) -> 
A42: =IF($B42="","",SUBTOTAL(3,$B$3:B42)) -> 
A43: =IF($B43="","",SUBTOTAL(3,$B$3:B43)) -> 
A44: =IF($B44="","",SUBTOTAL(3,$B$3:B44)) -> 
A45: =IF($B45="","",SUBTOTAL(3,$B$3:B45)) -> 
A46: =IF($B46="","",SUBTOTAL(3,$B$3:B46)) -> 
A47: =IF($B47="","",SUBTOTAL(3,$B$3:B47)) -> 
A48: =IF($B48="","",SUBTOTAL(3,$B$3:B48)) -> 
A49: =IF($B49="","",SUBTOTAL(3,$B$3:B49)) -> 
A50: =IF($B50="","",SUBTOTAL(3,$B$3:B50)) -> 
A51: =IF($B51="","",SUBTOTAL(3,$B$3:B51)) -> 
A52: =IF($B52="","",SUBTOTAL(3,$B$3:B52)) -> 
A53: =IF($B53="","",SUBTOTAL(3,$B$3:B53)) -> 
A54: =IF($B54="","",SUBTOTAL(3,$B$3:B54)) -> 
A55: =IF($B55="","",SUBTOTAL(3,$B$3:B55)) -> 
A56: =IF($B56="","",SUBTOTAL(3,$B$3:B56)) -> 
A57: =IF($B57="","",SUBTOTAL(3,$B$3:B57)) -> 
A58: =IF($B58="","",SUBTOTAL(3,$B$3:B58)) -> 
A59: =IF($B59="","",SUBTOTAL(3,$B$3:B59)) -> 
A60: =IF($B60="","",SUBTOTAL(3,$B$3:B60)) -> 
A61: =IF($B61="","",SUBTOTAL(3,$B$3:B61)) -> 
A62: =IF($B62="","",SUBTOTAL(3,$B$3:B62)) -> 
A63: =IF($B63="","",SUBTOTAL(3,$B$3:B63)) -> 
A64: =IF($B64="","",SUBTOTAL(3,$B$3:B64)) -> 
A65: =IF($B65="","",SUBTOTAL(3,$B$3:B65)) -> 
A66: =IF($B66="","",SUBTOTAL(3,$B$3:B66)) -> 
A67: =IF($B67="","",SUBTOTAL(3,$B$3:B67)) -> 
A68: =IF($B68="","",SUBTOTAL(3,$B$3:B68)) -> 
A69: =IF($B69="","",SUBTOTAL(3,$B$3:B69)) -> 
A70: =IF($B70="","",SUBTOTAL(3,$B$3:B70)) -> 
A71: =IF($B71="","",SUBTOTAL(3,$B$3:B71)) -> 
A72: =IF($B72="","",SUBTOTAL(3,$B$3:B72)) -> 
A73: =IF($B73="","",SUBTOTAL(3,$B$3:B73)) -> 
A74: =IF($B74="","",SUBTOTAL(3,$B$3:B74)) -> 
A75: =IF($B75="","",SUBTOTAL(3,$B$3:B75)) -> 
A76: =IF($B76="","",SUBTOTAL(3,$B$3:B76)) -> 
A77: =IF($B77="","",SUBTOTAL(3,$B$3:B77)) -> 
A78: =IF($B78="","",SUBTOTAL(3,$B$3:B78)) -> 
A79: =IF($B79="","",SUBTOTAL(3,$B$3:B79)) -> 
A80: =IF($B80="","",SUBTOTAL(3,$B$3:B80)) -> 
A81: =IF($B81="","",SUBTOTAL(3,$B$3:B81)) -> 
A82: =IF($B82="","",SUBTOTAL(3,$B$3:B82)) -> 
A83: =IF($B83="","",SUBTOTAL(3,$B$3:B83)) -> 
A84: =IF($B84="","",SUBTOTAL(3,$B$3:B84)) -> 
A85: =IF($B85="","",SUBTOTAL(3,$B$3:B85)) -> 
A86: =IF($B86="","",SUBTOTAL(3,$B$3:B86)) -> 
A87: =IF($B87="","",SUBTOTAL(3,$B$3:B87)) -> 
A88: =IF($B88="","",SUBTOTAL(3,$B$3:B88)) -> 
A89: =IF($B89="","",SUBTOTAL(3,$B$3:B89)) -> 
A90: =IF($B90="","",SUBTOTAL(3,$B$3:B90)) -> 
A91: =IF($B91="","",SUBTOTAL(3,$B$3:B91)) -> 
A92: =IF($B92="","",SUBTOTAL(3,$B$3:B92)) -> 
A93: =IF($B93="","",SUBTOTAL(3,$B$3:B93)) -> 
A94: =IF($B94="","",SUBTOTAL(3,$B$3:B94)) -> 
A95: =IF($B95="","",SUBTOTAL(3,$B$3:B95)) -> 
A96: =IF($B96="","",SUBTOTAL(3,$B$3:B96)) -> 
A97: =IF($B97="","",SUBTOTAL(3,$B$3:B97)) -> 
A98: =IF($B98="","",SUBTOTAL(3,$B$3:B98)) -> 
A99: =IF($B99="","",SUBTOTAL(3,$B$3:B99)) -> 
A100: =IF($B100="","",SUBTOTAL(3,$B$3:B100)) -> 
A101: =IF($B101="","",SUBTOTAL(3,$B$3:B101)) -> 
A102: =IF($B102="","",SUBTOTAL(3,$B$3:B102)) -> 
A103: =IF($B103="","",SUBTOTAL(3,$B$3:B103)) -> 
A104: =IF($B104="","",SUBTOTAL(3,$B$3:B104)) -> 
A105: =IF($B105="","",SUBTOTAL(3,$B$3:B105)) -> 
A106: =IF($B106="","",SUBTOTAL(3,$B$3:B106)) -> 
A107: =IF($B107="","",SUBTOTAL(3,$B$3:B107)) -> 
A108: =IF($B108="","",SUBTOTAL(3,$B$3:B108)) -> 
A109: =IF($B109="","",SUBTOTAL(3,$B$3:B109)) -> 
A110: =IF($B110="","",SUBTOTAL(3,$B$3:B110)) -> 
A111: =IF($B111="","",SUBTOTAL(3,$B$3:B111)) -> 
A112: =IF($B112="","",SUBTOTAL(3,$B$3:B112)) -> 
A113: =IF($B113="","",SUBTOTAL(3,$B$3:B113)) -> 
A114: =IF($B114="","",SUBTOTAL(3,$B$3:B114)) -> 
A115: =IF($B115="","",SUBTOTAL(3,$B$3:B115)) -> 
A116: =IF($B116="","",SUBTOTAL(3,$B$3:B116)) -> 
A117: =IF($B117="","",SUBTOTAL(3,$B$3:B117)) -> 
A118: =IF($B118="","",SUBTOTAL(3,$B$3:B118)) -> 
A119: =IF($B119="","",SUBTOTAL(3,$B$3:B119)) -> 
A120: =IF($B120="","",SUBTOTAL(3,$B$3:B120)) -> 
A121: =IF($B121="","",SUBTOTAL(3,$B$3:B121)) -> 
A122: =IF($B122="","",SUBTOTAL(3,$B$3:B122)) -> 
A123: =IF($B123="","",SUBTOTAL(3,$B$3:B123)) -> 
A124: =IF($B124="","",SUBTOTAL(3,$B$3:B124)) -> 
A125: =IF($B125="","",SUBTOTAL(3,$B$3:B125)) -> 
A126: =IF($B126="","",SUBTOTAL(3,$B$3:B126)) -> 
A127: =IF($B127="","",SUBTOTAL(3,$B$3:B127)) -> 
A128: =IF($B128="","",SUBTOTAL(3,$B$3:B128)) -> 
A129: =IF($B129="","",SUBTOTAL(3,$B$3:B129)) -> 
A130: =IF($B130="","",SUBTOTAL(3,$B$3:B130)) -> 
A131: =IF($B131="","",SUBTOTAL(3,$B$3:B131)) -> 
A132: =IF($B132="","",SUBTOTAL(3,$B$3:B132)) -> 
A133: =IF($B133="","",SUBTOTAL(3,$B$3:B133)) -> 
A134: =IF($B134="","",SUBTOTAL(3,$B$3:B134)) -> 
A135: =IF($B135="","",SUBTOTAL(3,$B$3:B135)) -> 
A136: =IF($B136="","",SUBTOTAL(3,$B$3:B136)) -> 
A137: =IF($B137="","",SUBTOTAL(3,$B$3:B137)) -> 
A138: =IF($B138="","",SUBTOTAL(3,$B$3:B138)) -> 
A139: =IF($B139="","",SUBTOTAL(3,$B$3:B139)) -> 
A140: =IF($B140="","",SUBTOTAL(3,$B$3:B140)) -> 
A141: =IF($B141="","",SUBTOTAL(3,$B$3:B141)) -> 
A142: =IF($B142="","",SUBTOTAL(3,$B$3:B142)) -> 
A143: =IF($B143="","",SUBTOTAL(3,$B$3:B143)) -> 
A144: =IF($B144="","",SUBTOTAL(3,$B$3:B144)) -> 
A145: =IF($B145="","",SUBTOTAL(3,$B$3:B145)) -> 
A146: =IF($B146="","",SUBTOTAL(3,$B$3:B146)) -> 
A147: =IF($B147="","",SUBTOTAL(3,$B$3:B147)) -> 
A148: =IF($B148="","",SUBTOTAL(3,$B$3:B148)) -> 
A149: =IF($B149="","",SUBTOTAL(3,$B$3:B149)) -> 
A150: =IF($B150="","",SUBTOTAL(3,$B$3:B150)) -> 
A151: =IF($B151="","",SUBTOTAL(3,$B$3:B151)) -> 
A152: =IF($B152="","",SUBTOTAL(3,$B$3:B152)) -> 
A153: =IF($B153="","",SUBTOTAL(3,$B$3:B153)) -> 
A154: =IF($B154="","",SUBTOTAL(3,$B$3:B154)) -> 
A155: =IF($B155="","",SUBTOTAL(3,$B$3:B155)) -> 
A156: =IF($B156="","",SUBTOTAL(3,$B$3:B156)) -> 
A157: =IF($B157="","",SUBTOTAL(3,$B$3:B157)) -> 
A158: =IF($B158="","",SUBTOTAL(3,$B$3:B158)) -> 
A159: =IF($B159="","",SUBTOTAL(3,$B$3:B159)) -> 
A160: =IF($B160="","",SUBTOTAL(3,$B$3:B160)) -> 
A161: =IF($B161="","",SUBTOTAL(3,$B$3:B161)) -> 
A162: =IF($B162="","",SUBTOTAL(3,$B$3:B162)) -> 
A163: =IF($B163="","",SUBTOTAL(3,$B$3:B163)) -> 
A164: =IF($B164="","",SUBTOTAL(3,$B$3:B164)) -> 
A165: =IF($B165="","",SUBTOTAL(3,$B$3:B165)) -> 
A166: =IF($B166="","",SUBTOTAL(3,$B$3:B166)) -> 
A167: =IF($B167="","",SUBTOTAL(3,$B$3:B167)) -> 
A168: =IF($B168="","",SUBTOTAL(3,$B$3:B168)) -> 
A169: =IF($B169="","",SUBTOTAL(3,$B$3:B169)) -> 
A170: =IF($B170="","",SUBTOTAL(3,$B$3:B170)) -> 
A171: =IF($B171="","",SUBTOTAL(3,$B$3:B171)) -> 
A172: =IF($B172="","",SUBTOTAL(3,$B$3:B172)) -> 
A173: =IF($B173="","",SUBTOTAL(3,$B$3:B173)) -> 
A174: =IF($B174="","",SUBTOTAL(3,$B$3:B174)) -> 
A175: =IF($B175="","",SUBTOTAL(3,$B$3:B175)) -> 
A176: =IF($B176="","",SUBTOTAL(3,$B$3:B176)) -> 
A177: =IF($B177="","",SUBTOTAL(3,$B$3:B177)) -> 
A178: =IF($B178="","",SUBTOTAL(3,$B$3:B178)) -> 
A179: =IF($B179="","",SUBTOTAL(3,$B$3:B179)) -> 
A180: =IF($B180="","",SUBTOTAL(3,$B$3:B180)) -> 
A181: =IF($B181="","",SUBTOTAL(3,$B$3:B181)) -> 
A182: =IF($B182="","",SUBTOTAL(3,$B$3:B182)) -> 
A183: =IF($B183="","",SUBTOTAL(3,$B$3:B183)) -> 
A184: =IF($B184="","",SUBTOTAL(3,$B$3:B184)) -> 
A185: =IF($B185="","",SUBTOTAL(3,$B$3:B185)) -> 
A186: =IF($B186="","",SUBTOTAL(3,$B$3:B186)) -> 
A187: =IF($B187="","",SUBTOTAL(3,$B$3:B187)) -> 
A188: =IF($B188="","",SUBTOTAL(3,$B$3:B188)) -> 
A189: =IF($B189="","",SUBTOTAL(3,$B$3:B189)) -> 
A190: =IF($B190="","",SUBTOTAL(3,$B$3:B190)) -> 
A191: =IF($B191="","",SUBTOTAL(3,$B$3:B191)) -> 
A192: =IF($B192="","",SUBTOTAL(3,$B$3:B192)) -> 
A193: =IF($B193="","",SUBTOTAL(3,$B$3:B193)) -> 
A194: =IF($B194="","",SUBTOTAL(3,$B$3:B194)) -> 
A195: =IF($B195="","",SUBTOTAL(3,$B$3:B195)) -> 
A196: =IF($B196="","",SUBTOTAL(3,$B$3:B196)) -> 
A197: =IF($B197="","",SUBTOTAL(3,$B$3:B197)) -> 
A198: =IF($B198="","",SUBTOTAL(3,$B$3:B198)) -> 
A199: =IF($B199="","",SUBTOTAL(3,$B$3:B199)) -> 
A200: =IF($B200="","",SUBTOTAL(3,$B$3:B200)) -> 
... 11 more rows

Sheet January
G1: Total | P1: Total L.E | Q1: Total $
A2: SER. | B2: Supplier Name | C2: Trip Name | D2: From | E2: To | F2: Invoice NO. | G2: L.E | H2: $ | I2: Transfer | J2: Discount | K2: Kick Back | L2: Vat 14% | M2: Tax Discount 3% | N2: Grand Total | O2: Currency Type | P2: =SUMIF($O:$O,"L.E",$N:$N) -> 1691621.912 | Q2: =SUMIF($O:$O,"$",$N:$N) -> 4692.5
A3: =IF($B3="","",SUBTOTAL(3,$B$3:B3)) -> 1 | B3: Answer Safari | D3: 2022-01-01 | E3: 2022-01-15 | F3: 3699 | G3: 5000 | L3: =IF(OR($C3="National Park Fees",$C3="Extra Cost",$C3="Safari Fees",$C3="Tips"),0,(($G3+$H3+$I3)-($J3+$K3))*14%) -> 700 | M3: =IF(OR($C3="National Park Fees",$C3="Extra Cost",$C3="Safari Fees",$C3="Tips"),0,(($G3+$H3+$I3)-($J3+$K3))*-3%) -> -150 | N3: =IF($B3="","",(($G3+$H3+$I3)-($J3+$K3))+L3+M3) -> 5550 | O3: =IF($B3="","",IF($G3="",$H$2,$G$2)) -> L.E
A4: =IF($B4="","",SUBTOTAL(3,$B$3:B4)) -> 2 | B4: Fire SeaScope | C4: Rusalka | D4: 2022-01-01 | E4: 2022-01-15 | F4: 2505 | G4: 5400 | I4: 615 | K4: 360.9 | L4: 791.574 | M4: -169.623 | N4: 6276.051 | O4: L.E
A5: =IF($B5="","",SUBTOTAL(3,$B$3:B5)) -> 3 | B5: Aqua Dight | C5: Intro Diving-Snorkeling | D5: 2022-01-01 | E5: 2022-01-15 | F5: 4 | G5: 5650 | J5: 282.5 | L5: 0 | M5: -161.025 | N5: 5206.475 | O5: L.E
A6: =IF($B6="","",SUBTOTAL(3,$B$3:B6)) -> 4 | B6: Nourse Safary | C6: Moto 3 Hours | D6: 2022-01-01 | E6: 2022-01-15 | F6: 280 | G6: 11900 | I6: 2305 | J6: =1190+230.5 -> 1420.5 | L6: =IF(OR($C6="National Park Fees",$C6="Extra Cost",$C6="Safari Fees",$C6="Tips"),0,(($G6+$H6+$I6)-($J6+$K6))*14%) -> 1789.83 | M6: -383.535 | N6: 14190.795 | O6: L.E
A7: =IF($B7="","",SUBTOTAL(3,$B$3:B7)) -> 5 | B7: Nourse Safary | C7: Moto 5 Hours | D7: 2022-01-01 | E7: 2022-01-15 | F7: 281 | G7: 16065 | I7: 2225 | J7: =222.5+1606.5 -> 1829 | L7: 2304.54 | M7: -493.83 | N7: 18271.71 | O7: L.E
A8: =IF($B8="","",SUBTOTAL(3,$B$3:B8)) -> 6 | B8: Nourse Safary | C8: Super Safari | D8: 2022-01-01 | E8: 2022-01-15 | F8: 278 | G8: 131950 | J8: 13195 | L8: 16625.7 | M8: -3562.65 | N8: 131818.05 | O8: L.E
A9: =IF($B9="","",SUBTOTAL(3,$B$3:B9)) -> 7 | B9: Nourse Safary | C9: Mega Safari | D9: 2022-01-01 | E9: 2022-01-15 | F9: 279 | G9: 21375 | J9: 2137.5 | L9: 2693.25 | M9: -577.125 | N9: 21353.625 | O9: L.E
A10: =IF($B10="","",SUBTOTAL(3,$B$3:B10)) -> 8 | B10: Nourse Safary | C10: Safari Fees | D10: 2022-01-01 | E10: 2022-01-15 | F10: 1004 | G10: 13100 | L10: 0 | M10: 0 | N10: 13100 | O10: L.E
A11: =IF($B11="","",SUBTOTAL(3,$B$3:B11)) -> 9 | B11: Luba Center | C11: Super Scuba | D11: 2022-01-01 | E11: 2022-01-15 | F11: 33 | G11: 198660 | I11: 475 | J11: =47.5+19866 -> 19913.5 | L11: 25091.01 | M11: -5376.645 | N11: 198935.865 | O11: L.E
A12: =IF($B12="","",SUBTOTAL(3,$B$3:B12)) -> 10 | B12: Luba Center | C12: National Park Fees | D12: 2022-01-01 | E12: 2022-01-15 | F12: 33 | H12: 2840 | L12: 0 | M12: 0 | N12: 2840 | O12: $
A13: =IF($B13="","",SUBTOTAL(3,$B$3:B13)) -> 11 | B13: Luba Center | C13: Private Boat Fishing | D13: 2022-01-01 | E13: 2022-01-15 | F13: 34 | G13: 25880 | J13: 2588 | L13: 3260.88 | M13: -698.76 | N13: 25854.12 | O13: L.E
A14: =IF($B14="","",SUBTOTAL(3,$B$3:B14)) -> 12 | B14: Luba Center | C14: National Park Fees | D14: 2022-01-01 | E14: 2022-01-15 | F14: 34 | H14: 190 | L14: 0 | M14: 0 | N14: 190 | O14: $
A15: =IF($B15="","",SUBTOTAL(3,$B$3:B15)) -> 13 | B15: Luba Center | C15: Extra Cost | D15: 2022-01-01 | E15: 2022-01-15 | F15: 12 | G15: 1320 | L15: 0 | M15: 0 | N15: 1320 | O15: L.E
A16: =IF($B16="","",SUBTOTAL(3,$B$3:B16)) -> 14 | B16: Lottery Diving Club | C16: Intro Diving-Snorkeling | D16: 2022-01-01 | E16: 2022-01-15 | F16: 19 | G16: 25430 | I16: 170 | J16: =17+2543 -> 2560 | L16: 3225.6 | M16: =IF(OR($C16="National Park Fees",$C16="Extra Cost",$C16="Safari Fees",$C16="Tips"),0,(($G16+$H16+$I16)-($J16+$K16))*-3%) -> -691.2 | N16: 25574.4 | O16: L.E
A17: =IF($B17="","",SUBTOTAL(3,$B$3:B17)) -> 15 | B17: Follow Aqua Boda | C17: Snorkeling (Coral Reef) | D17: 2022-01-01 | E17: 2022-01-15 | F17: 34 | G17: 3610 | I17: 1400 | J17: =140+361 -> 501 | L17: 0 | M17: -135.27 | N17: 4373.73 | O17: L.E
A18: =IF($B18="","",SUBTOTAL(3,$B$3:B18)) -> 16 | B18: Follow Aqua Boda | C18: National Park Fees | D18: 2022-01-01 | E18: 2022-01-15 | F18: 34 F | H18: 100 | L18: 0 | M18: 0 | N18: 100 | O18: $
A19: =IF($B19="","",SUBTOTAL(3,$B$3:B19)) -> 17 | B19: Memo Travel Company | C19: Transfer (Excursion) | D19: 2022-01-01 | E19: 2022-01-15 | F19: 23224 | G19: 376455 | J19: 37645.5 | L19: =IF(OR($C19="National Park Fees",$C19="Extra Cost",$C19="Safari Fees",$C19="Tips"),0,(($G19+$H19+$I19)-($J19+$K19))*14%) -> 47433.33 | M19: -10164.285 | N19: 376078.545 | O19: L.E
A20: =IF($B20="","",SUBTOTAL(3,$B$3:B20)) -> 18 | B20: Memo Travel Company | C20: Tips | D20: 2022-01-01 | E20: 2022-01-15 | F20: 23224 | G20: 37160 | L20: 0 | M20: 0 | N20: 37160 | O20: L.E
A21: =IF($B21="","",SUBTOTAL(3,$B$3:B21)) -> 19 | B21: Memo Travel Company | C21: Transfer (AirPort) | D21: 2022-01-01 | E21: 2022-01-15 | F21: 23225 | G21: 275340 | J21: 27534 | L21: 34692.84 | M21: -7434.18 | N21: 275064.66 | O21: L.E
A22: =IF($B22="","",SUBTOTAL(3,$B$3:B22)) -> 20 | B22: Memo Travel Company | C22: Tips | D22: 2022-01-01 | E22: 2022-01-15 | F22: 23225 | G22: 29540 | L22: 0 | M22: 0 | N22: 29540 | O22: L.E
A23: =IF($B23="","",SUBTOTAL(3,$B$3:B23)) -> 21 | B23: Fire SeaScope | C23: Rusalka | D23: 2022-01-16 | E23: 2022-01-31 | F23: 2438 | G23: 720 | I23: 240 | K23: =14.4+43.2 -> 57.6 | L23: 126.336 | M23: =IF(OR($C23="National Park Fees",$C23="Extra Cost",$C23="Safari Fees",$C23="Tips"),0,(($G23+$H23+$I23)-($J23+$K23))*-3%) -> -27.072 | N23: 1001.664 | O23: L.E
A24: =IF($B24="","",SUBTOTAL(3,$B$3:B24)) -> 22 | B24: Luba Center | C24: Super Scuba | D24: 2022-01-16 | E24: 2022-01-31 | F24: 35 | G24: 108762.5 | I24: 135 | J24: =13.5+10876.25 -> 10889.75 | L24: =IF(OR($C24="National Park Fees",$C24="Extra Cost",$C24="Safari Fees",$C24="Tips"),0,(($G24+$H24+$I24)-($J24+$K24))*14%) -> 13721.085 | M24: -2940.2325 | N24: =IF($B24="","",(($G24+$H24+$I24)-($J24+$K24))+L24+M24) -> 108788.6025 | O24: =IF($B24="","",IF($G24="",$H$2,$G$2)) -> L.E
A25: =IF($B25="","",SUBTOTAL(3,$B$3:B25)) -> 23 | B25: Luba Center | C25: National Park Fees | D25: 2022-01-16 | E25: 2022-01-31 | F25: 35 | H25: 1562.5 | L25: 0 | M25: 0 | N25: 1562.5 | O25: $
A26: =IF($B26="","",SUBTOTAL(3,$B$3:B26)) -> 24 | B26: Luba Center | C26: Extra Cost | D26: 2022-01-16 | E26: 2022-01-31 | F26: 13 | G26: 990 | L26: 0 | M26: 0 | N26: 990 | O26: L.E
A27: =IF($B27="","",SUBTOTAL(3,$B$3:B27)) -> 25 | B27: Lottery Diving Club | C27: Intro Diving-Snorkeling | D27: 2022-01-16 | E27: 2022-01-31 | F27: 20 | G27: 4815 | I27: 850 | J27: =85+481.5 -> 566.5 | L27: 713.79 | M27: -152.955 | N27: 5659.335 | O27: L.E
A28: =IF($B28="","",SUBTOTAL(3,$B$3:B28)) -> 26 | B28: Nourse Safary | C28: Moto 5 Hours | D28: 2022-01-16 | E28: 2022-01-31 | F28: 286 | G28: 9990 | I28: 1330 | J28: =133+999 -> 1132 | L28: 1426.32 | M28: -305.64 | N28: 11308.68 | O28: L.E
A29: =IF($B29="","",SUBTOTAL(3,$B$3:B29)) -> 27 | B29: Nourse Safary | C29: Individual Moto 3 | D29: 2022-01-16 | E29: 2022-01-31 | F29: 285 | G29: 800 | I29: 300 | J29: 110 | L29: 138.6 | M29: -29.7 | N29: 1098.9 | O29: L.E
A30: =IF($B30="","",SUBTOTAL(3,$B$3:B30)) -> 28 | B30: Nourse Safary | C30: Moto 3 Hours | D30: 2022-01-16 | E30: 2022-01-31 | F30: 284 | G30: 11000 | I30: 1980 | J30: =198+1100 -> 1298 | L30: 1635.48 | M30: -350.46 | N30: 12967.02 | O30: L.E
A31: =IF($B31="","",SUBTOTAL(3,$B$3:B31)) -> 29 | B31: Nourse Safary | C31: Mega Safari | D31: 2022-01-16 | E31: 2022-01-31 | F31: 283 | G31: 3250 | J31: 325 | L31: 409.5 | M31: -87.75 | N31: 3246.75 | O31: L.E
A32: =IF($B32="","",SUBTOTAL(3,$B$3:B32)) -> 30 | B32: Nourse Safary | C32: Super Safari | D32: 2022-01-16 | E32: 2022-01-31 | F32: 282 | G32: 28350 | J32: 2835 | L32: 3572.1 | M32: -765.45 | N32: 28321.65 | O32: L.E
A33: =IF($B33="","",SUBTOTAL(3,$B$3:B33)) -> 31 | B33: Nourse Safary | C33: Safari Fees | D33: 2022-01-16 | E33: 2022-01-31 | F33: 1005 | G33: 4080 | L33: 0 | M33: 0 | N33: 4080 | O33: L.E
A34: =IF($B34="","",SUBTOTAL(3,$B$3:B34)) -> 32 | B34: Memo Travel Company | C34: Transfer (AirPort) | D34: 2022-01-16 | E34: 2022-01-31 | F34: 23230 | G34: 140830 | J34: 14083 | L34: =IF(OR($C34="National Park Fees",$C34="Extra Cost",$C34="Safari Fees",$C34="Tips"),0,(($G34+$H34+$I34)-($J34+$K34))*14%) -> 17744.58 | M34: -3802.41 | N34: 140689.17 | O34: L.E
A35: =IF($B35="","",SUBTOTAL(3,$B$3:B35)) -> 33 | B35: Memo Travel Company | C35: Tips | D35: 2022-01-16 | E35: 2022-01-31 | F35: 23230 | G35: 15655 | L35: 0 | M35: 0 | N35: 15655 | O35: L.E
A36: =IF($B36="","",SUBTOTAL(3,$B$3:B36)) -> 34 | B36: Memo Travel Company | C36: Flight Crew | D36: 2022-01-16 | E36: 2022-01-31 | F36: 23232 | G36: 6545 | J36: 654.5 | L36: 824.67 | M36: -176.715 | N36: 6538.455 | O36: L.E
A37: =IF($B37="","",SUBTOTAL(3,$B$3:B37)) -> 35 | B37: Memo Travel Company | C37: Tips | D37: 2022-01-16 | E37: 2022-01-31 | F37: 23232 | G37: 1040 | L37: 0 | M37: 0 | N37: 1040 | O37: L.E
A38: =IF($B38="","",SUBTOTAL(3,$B$3:B38)) -> 36 | B38: Memo Travel Company | C38: Transfer (Excursion) | D38: 2022-01-16 | E38: 2022-01-31 | F38: 23231 | G38: 146340 | J38: 14634 | L38: 18438.84 | M38: -3951.18 | N38: 146193.66 | O38: L.E
A39: =IF($B39="","",SUBTOTAL(3,$B$3:B39)) -> 37 | B39: Memo Travel Company | C39: Tips | D39: 2022-01-16 | E39: 2022-01-31 | F39: 23231 | G39: 14375 | L39: 0 | M39: 0 | N39: 14375 | O39: L.E
A40: Total | G40: =SUM(G3:G39) -> 1681377.5 | H40: 4692.5 | I40: 12025 | J40: 156134.25 | K40: 418.5 | L40: 197359.855 | M40: -42587.6925 | N40: 1696314.412

Sheet February
G1: Total | P1: Total L.E | Q1: Total $
A2: SER. | B2: Supplier Name | C2: Trip Name | D2: From | E2: To | F2: Invoice NO. | G2: L.E | H2: $ | I2: Transfer | J2: Discount | K2: Kick Back | L2: Vat 14% | M2: Tax Discount 3% | N2: Grand Total | O2: Currency Type | P2: =SUMIF($O:$O,"L.E",$N:$N) -> 1142507.047 | Q2: =SUMIF($O:$O,"$",$N:$N) -> 4710
A3: =IF($B3="","",SUBTOTAL(3,$B$3:B3)) -> 1 | B3: Luba Center | C3: Super Scuba | D3: 2022-02-01 | E3: 2022-02-15 | F3: 36 | G3: 128590 | I3: 860 | J3: =12859+86 -> 12945 | L3: =IF(OR($C3="National Park Fees",$C3="Extra Cost",$C3="Safari Fees",$C3="Tips"),0,(($G3+$H3+$I3)-($J3+$K3))*14%) -> 16310.7 | M3: =IF(OR($C3="National Park Fees",$C3="Extra Cost",$C3="Safari Fees",$C3="Tips"),0,(($G3+$H3+$I3)-($J3+$K3))*-3%) -> -3495.15 | N3: =IF($B3="","",(($G3+$H3+$I3)-($J3+$K3))+L3+M3) -> 129320.55 | O3: =IF($B3="","",IF($G3="",$H$2,$G$2)) -> L.E
A4: =IF($B4="","",SUBTOTAL(3,$B$3:B4)) -> 2 | B4: Luba Center | C4: National Park Fees | D4: 2022-02-01 | E4: 2022-02-15 | F4: 36 | H4: 1840 | L4: 0 | M4: 0 | N4: 1840 | O4: $
A5: =IF($B5="","",SUBTOTAL(3,$B$3:B5)) -> 3 | B5: Luba Center | C5: Extra Cost | D5: 2022-02-01 | E5: 2022-02-15 | F5: 14 | G5: 660 | L5: 0 | M5: 0 | N5: 660 | O5: L.E
A6: =IF($B6="","",SUBTOTAL(3,$B$3:B6)) -> 4 | B6: Panorama Kabeer | C6: Rusalka | D6: 2022-02-01 | E6: 2022-02-15 | F6: 244 | G6: 1050 | I6: 245 | L6: 181.3 | M6: -38.85 | N6: 1437.45 | O6: L.E
A7: =IF($B7="","",SUBTOTAL(3,$B$3:B7)) -> 5 | B7: Follow Aqua Boda | C7: Snorkeling (Coral Reef) | D7: 2022-02-01 | E7: 2022-02-15 | F7: 35 | G7: 760 | I7: 280 | J7: =28+76 -> 104 | L7: 0 | M7: -28.08 | N7: 907.92 | O7: L.E
A8: =IF($B8="","",SUBTOTAL(3,$B$3:B8)) -> 6 | B8: Follow Aqua Boda | C8: National Park Fees | D8: 2022-02-01 | E8: 2022-02-15 | F8: 35 F | H8: 20 | L8: 0 | M8: 0 | N8: 20 | O8: $
A9: =IF($B9="","",SUBTOTAL(3,$B$3:B9)) -> 7 | B9: Nourse Safary | C9: Super Safari | D9: 2022-02-01 | E9: 2022-02-15 | F9: 294 | G9: 29925 | J9: 2992.5 | L9: 3770.55 | M9: -807.975 | N9: 29895.075 | O9: L.E
A10: =IF($B10="","",SUBTOTAL(3,$B$3:B10)) -> 8 | B10: Nourse Safary | C10: Mega Safari | D10: 2022-02-01 | E10: 2022-02-15 | F10: 295 | G10: 7250 | J10: 725 | L10: 913.5 | M10: -195.75 | N10: 7242.75 | O10: L.E
A11: =IF($B11="","",SUBTOTAL(3,$B$3:B11)) -> 9 | B11: Nourse Safary | C11: Moto 3 Hours | D11: 2022-02-01 | E11: 2022-02-15 | F11: 296 | G11: 8900 | I11: 1425 | J11: =142.5+890 -> 1032.5 | L11: 1300.95 | M11: -278.775 | N11: 10314.675 | O11: L.E
A12: =IF($B12="","",SUBTOTAL(3,$B$3:B12)) -> 10 | B12: Nourse Safary | C12: Individual Moto 3 | D12: 2022-02-01 | E12: 2022-02-15 | F12: 297 | G12: 1500 | I12: 600 | J12: =150+60 -> 210 | L12: 264.6 | M12: -56.7 | N12: 2097.9 | O12: L.E
A13: =IF($B13="","",SUBTOTAL(3,$B$3:B13)) -> 11 | B13: Nourse Safary | C13: Moto 5 Hours | D13: 2022-02-01 | E13: 2022-02-15 | F13: 298 | G13: 9180 | I13: 1200 | J13: =918+120 -> 1038 | L13: 1307.88 | M13: -280.26 | N13: 10369.62 | O13: L.E
A14: =IF($B14="","",SUBTOTAL(3,$B$3:B14)) -> 12 | B14: Nourse Safary | C14: Safari Fees | D14: 2022-02-01 | E14: 2022-02-15 | F14: 1006 | G14: 4340 | L14: 0 | M14: 0 | N14: 4340 | O14: L.E
A15: =IF($B15="","",SUBTOTAL(3,$B$3:B15)) -> 13 | B15: Memo Travel Company | C15: Transfer (Excursion) | D15: 2022-02-01 | E15: 2022-02-15 | F15: 23237 | G15: 113785 | J15: 11378.5 | L15: 14336.91 | M15: -3072.195 | N15: 113671.215 | O15: L.E
A16: =IF($B16="","",SUBTOTAL(3,$B$3:B16)) -> 14 | B16: Memo Travel Company | C16: Tips | D16: 2022-02-01 | E16: 2022-02-15 | F16: 23237 | G16: 11540 | L16: 0 | M16: 0 | N16: 11540 | O16: L.E
A17: =IF($B17="","",SUBTOTAL(3,$B$3:B17)) -> 15 | B17: Memo Travel Company | C17: Transfer (AirPort) | D17: 2022-02-01 | E17: 2022-02-15 | F17: 23236 | G17: 109955 | J17: 10995.5 | L17: 13854.33 | M17: -2968.785 | N17: 109845.045 | O17: L.E
A18: =IF($B18="","",SUBTOTAL(3,$B$3:B18)) -> 16 | B18: Memo Travel Company | C18: Tips | D18: 2022-02-01 | E18: 2022-02-15 | F18: 23236 | G18: 12655 | L18: 0 | M18: 0 | N18: 12655 | O18: L.E
A19: =IF($B19="","",SUBTOTAL(3,$B$3:B19)) -> 17 | B19: Lottery Diving Club | C19: Intro Diving-Snorkeling | D19: 2022-02-01 | E19: 2022-02-15 | F19: 21 | G19: 3555 | I19: 340 | J19: =34+355.5 -> 389.5 | L19: 490.77 | M19: -105.165 | N19: 3891.105 | O19: L.E
A20: =IF($B20="","",SUBTOTAL(3,$B$3:B20)) -> 18 | B20: Lottery Diving Club | C20: Extra Cost | D20: 2022-02-01 | E20: 2022-02-15 | F20: 1 | G20: 300 | L20: 0 | M20: 0 | N20: 300 | O20: L.E
A21: =IF($B21="","",SUBTOTAL(3,$B$3:B21)) -> 19 | B21: Fire SeaScope | C21: Rusalka | D21: 2022-02-16 | E21: 2022-02-28 | F21: 2450 | G21: 450 | I21: 150 | K21: 36 | L21: 78.96 | M21: -16.92 | N21: 626.04 | O21: L.E
A22: =IF($B22="","",SUBTOTAL(3,$B$3:B22)) -> 20 | B22: Lottery Diving Club | C22: Intro Diving-Snorkeling | D22: 2022-02-16 | E22: 2022-02-28 | F22: 22 | G22: 12972.5 | I22: 1445 | J22: =144.5+1297.25 -> 1441.75 | L22: 1816.605 | M22: -389.2725 | N22: 14403.0825 | O22: L.E
A23: =IF($B23="","",SUBTOTAL(3,$B$3:B23)) -> 21 | B23: Follow Aqua Boda | C23: Snorkeling (Coral Reef) | D23: 2022-02-16 | E23: 2022-02-28 | F23: 36 | G23: 1520 | I23: 560 | J23: =56+152 -> 208 | L23: 0 | M23: -56.16 | N23: 1815.84 | O23: L.E
A24: =IF($B24="","",SUBTOTAL(3,$B$3:B24)) -> 22 | B24: Follow Aqua Boda | C24: National Park Fees | D24: 2022-02-16 | E24: 2022-02-28 | F24: 36 F | H24: 40 | L24: 0 | M24: 0 | N24: 40 | O24: $
A25: =IF($B25="","",SUBTOTAL(3,$B$3:B25)) -> 23 | B25: Panorama Kabeer | C25: Rusalka | D25: 2022-02-16 | E25: 2022-02-28 | F25: 260 | G25: 1600 | I25: 1120 | L25: 380.8 | M25: -81.6 | N25: 3019.2 | O25: L.E
A26: =IF($B26="","",SUBTOTAL(3,$B$3:B26)) -> 24 | B26: Nourse Safary | C26: Super Safari | D26: 2022-02-16 | E26: 2022-02-28 | F26: 301 | G26: 52675 | J26: 5267.5 | L26: 6637.05 | M26: -1422.225 | N26: 52622.325 | O26: L.E
A27: =IF($B27="","",SUBTOTAL(3,$B$3:B27)) -> 25 | B27: Nourse Safary | C27: Mega Safari | D27: 2022-02-16 | E27: 2022-02-28 | F27: 302 | G27: 17750 | J27: 1775 | L27: 2236.5 | M27: -479.25 | N27: 17732.25 | O27: L.E
A28: =IF($B28="","",SUBTOTAL(3,$B$3:B28)) -> 26 | B28: Nourse Safary | C28: Moto 3 Hours | D28: 2022-02-16 | E28: 2022-02-28 | F28: 303 | G28: 6900 | I28: 1295 | J28: =690+129.5 -> 819.5 | L28: 1032.57 | M28: -221.265 | N28: 8186.805 | O28: L.E
A29: =IF($B29="","",SUBTOTAL(3,$B$3:B29)) -> 27 | B29: Nourse Safary | C29: Moto 5 Hours | D29: 2022-02-16 | E29: 2022-02-28 | F29: 304 | G29: 8100 | I29: 960 | J29: =810+96 -> 906 | L29: 1141.56 | M29: -244.62 | N29: 9050.94 | O29: L.E
A30: =IF($B30="","",SUBTOTAL(3,$B$3:B30)) -> 28 | B30: Nourse Safary | C30: Safari Fees | D30: 2022-02-16 | E30: 2022-02-28 | F30: 1007 | G30: 6440 | L30: 0 | M30: 0 | N30: 6440 | O30: L.E
A31: =IF($B31="","",SUBTOTAL(3,$B$3:B31)) -> 29 | B31: Luba Center | C31: Super Scuba | D31: 2022-02-16 | E31: 2022-02-28 | F31: 37 | G31: 196735 | I31: 215 | J31: =21.5+19673.5 -> 19695 | L31: =IF(OR($C31="National Park Fees",$C31="Extra Cost",$C31="Safari Fees",$C31="Tips"),0,(($G31+$H31+$I31)-($J31+$K31))*14%) -> 24815.7 | M31: =IF(OR($C31="National Park Fees",$C31="Extra Cost",$C31="Safari Fees",$C31="Tips"),0,(($G31+$H31+$I31)-($J31+$K31))*-3%) -> -5317.65 | N31: =IF($B31="","",(($G31+$H31+$I31)-($J31+$K31))+L31+M31) -> 196753.05 | O31: =IF($B31="","",IF($G31="",$H$2,$G$2)) -> L.E
A32: =IF($B32="","",SUBTOTAL(3,$B$3:B32)) -> 30 | B32: Luba Center | C32: National Park Fees | D32: 2022-02-16 | E32: 2022-02-28 | F32: 37 | H32: 2810 | L32: 0 | M32: 0 | N32: 2810 | O32: $
A33: =IF($B33="","",SUBTOTAL(3,$B$3:B33)) -> 31 | B33: Luba Center | C33: Extra Cost | D33: 2022-02-16 | E33: 2022-02-28 | F33: 15 | G33: 2000 | L33: 0 | M33: 0 | N33: 2000 | O33: L.E
A34: =IF($B34="","",SUBTOTAL(3,$B$3:B34)) -> 32 | B34: Memo Travel Company | C34: Transfer (Excursion) | D34: 2022-02-16 | E34: 2022-02-28 | F34: 23248 | G34: 179210 | J34: 17921 | L34: 22580.46 | M34: -4838.67 | N34: 179030.79 | O34: L.E
A35: =IF($B35="","",SUBTOTAL(3,$B$3:B35)) -> 33 | B35: Memo Travel Company | C35: Tips | D35: 2022-02-16 | E35: 2022-02-28 | F35: 23248 | G35: 18010 | L35: 0 | M35: 0 | N35: 18010 | O35: L.E
A36: =IF($B36="","",SUBTOTAL(3,$B$3:B36)) -> 34 | B36: Memo Travel Company | C36: Flight Crew | D36: 2022-02-16 | E36: 2022-02-28 | F36: 23252 | G36: 3770 | J36: 377 | L36: 475.02 | M36: -101.79 | N36: 3766.23 | O36: L.E
A37: =IF($B37="","",SUBTOTAL(3,$B$3:B37)) -> 35 | B37: Memo Travel Company | C37: Tips | D37: 2022-02-16 | E37: 2022-02-28 | F37: 23252 | G37: 685 | L37: 0 | M37: 0 | N37: 685 | O37: L.E
A38: =IF($B38="","",SUBTOTAL(3,$B$3:B38)) -> 36 | B38: Memo Travel Company | C38: Transfer (AirPort) | D38: 2022-02-16 | E38: 2022-02-28 | F38: 23247 | G38: 162810 | J38: 16281 | L38: 20514.06 | M38: -4395.87 | N38: 162647.19 | O38: L.E
A39: =IF($B39="","",SUBTOTAL(3,$B$3:B39)) -> 37 | B39: Memo Travel Company | C39: Tips | D39: 2022-02-16 | E39: 2022-02-28 | F39: 23247 | G39: 17230 | L39: 0 | M39: 0 | N39: 17230 | O39: L.E
A40: Total | G40: =SUM(G3:G39) -> 1132802.5 | H40: 4710 | I40: 10695 | J40: 106502.25 | K40: 36 | L40: 134440.775 | M40: -28892.9775 | N40: 1147217.047

Sheet March
G1: Total | P1: Total L.E | Q1: Total $
A2: SER. | B2: Supplier Name | C2: Trip Name | D2: From | E2: To | F2: Invoice NO. | G2: L.E | H2: $ | I2: Transfer | J2: Discount | K2: Kick Back | L2: Vat 14% | M2: Tax Discount 3% | N2: Grand Total | O2: Currency Type | P2: =SUMIF($O:$O,"L.E",$N:$N) -> 312218.215 | Q2: =SUMIF($O:$O,"$",$N:$N) -> 1175
A3: =IF($B3="","",SUBTOTAL(3,$B$3:B3)) -> 1 | B3: Lottery Diving Club | C3: Intro Diving-Diving | D3: 2022-03-01 | E3: 2022-03-15 | F3: 23 | G3: 3520 | I3: 340 | J3: =34+352 -> 386 | L3: =IF(OR($C3="National Park Fees",$C3="Extra Cost",$C3="Safari Fees",$C3="Tips"),0,(($G3+$H3+$I3)-($J3+$K3))*14%) -> 486.36 | M3: =IF(OR($C3="National Park Fees",$C3="Extra Cost",$C3="Safari Fees",$C3="Tips"),0,(($G3+$H3+$I3)-($J3+$K3))*-3%) -> -104.22 | N3: =IF($B3="","",(($G3+$H3+$I3)-($J3+$K3))+L3+M3) -> 3856.14 | O3: =IF($B3="","",IF($G3="",$H$2,$G$2)) -> L.E
A4: =IF($B4="","",SUBTOTAL(3,$B$3:B4)) -> 2 | B4: Panorama Kabeer | C4: Rusalka | D4: 2022-03-01 | E4: 2022-03-15 | F4: 264 | G4: 500 | I4: 350 | L4: 119 | M4: -25.5 | N4: 943.5 | O4: L.E
A5: =IF($B5="","",SUBTOTAL(3,$B$3:B5)) -> 3 | B5: Fire SeaScope | C5: Rusalka | D5: 2022-03-01 | E5: 2022-03-15 | F5: 2459 | G5: 450 | I5: 150 | K5: =9+27 -> 36 | L5: 78.96 | M5: -16.92 | N5: 626.04 | O5: L.E
A6: =IF($B6="","",SUBTOTAL(3,$B$3:B6)) -> 4 | B6: Luba Center | C6: Super Scuba | D6: 2022-03-01 | E6: 2022-03-15 | F6: 38 | G6: 80850 | J6: 8085 | L6: 10187.1 | M6: -2182.95 | N6: =IF($B6="","",(($G6+$H6+$I6)-($J6+$K6))+L6+M6) -> 80769.15 | O6: L.E
A7: =IF($B7="","",SUBTOTAL(3,$B$3:B7)) -> 5 | B7: Luba Center | C7: National Park Fees | D7: 2022-03-01 | E7: 2022-03-15 | F7: 38 | H7: 1155 | L7: 0 | M7: 0 | N7: 1155 | O7: $
A8: =IF($B8="","",SUBTOTAL(3,$B$3:B8)) -> 6 | B8: Luba Center | C8: Extra Cost | D8: 2022-03-01 | E8: 2022-03-15 | F8: 38 | G8: 800 | L8: 0 | M8: 0 | N8: 800 | O8: L.E
A9: =IF($B9="","",SUBTOTAL(3,$B$3:B9)) -> 7 | B9: Nourse Safary | C9: Super Safari | D9: 2022-03-01 | E9: 2022-03-15 | F9: 313 | G9: 19425 | J9: 1942.5 | L9: 2447.55 | M9: -524.475 | N9: 19405.575 | O9: L.E
A10: =IF($B10="","",SUBTOTAL(3,$B$3:B10)) -> 8 | B10: Nourse Safary | C10: Moto 3 Hours | D10: 2022-03-01 | E10: 2022-03-15 | F10: 315 | G10: 5000 | I10: 980 | J10: 598 | L10: 753.48 | M10: -161.46 | N10: 5974.02 | O10: L.E
A11: =IF($B11="","",SUBTOTAL(3,$B$3:B11)) -> 9 | B11: Nourse Safary | C11: Mega Safari | D11: 2022-03-01 | E11: 2022-03-15 | F11: 314 | G11: 5875 | J11: 587.5 | L11: 740.25 | M11: -158.625 | N11: 5869.125 | O11: L.E
A12: =IF($B12="","",SUBTOTAL(3,$B$3:B12)) -> 10 | B12: Nourse Safary | C12: Moto 5 Hours | D12: 2022-03-01 | E12: 2022-03-15 | F12: 316 | G12: 1080 | I12: 120 | J12: =12+108 -> 120 | L12: 151.2 | M12: -32.4 | N12: 1198.8 | O12: L.E
A13: =IF($B13="","",SUBTOTAL(3,$B$3:B13)) -> 11 | B13: Nourse Safary | C13: Safari Fees | D13: 2022-03-01 | E13: 2022-03-15 | F13: 1008 | G13: 2360 | L13: 0 | M13: 0 | N13: 2360 | O13: L.E
A14: =IF($B14="","",SUBTOTAL(3,$B$3:B14)) -> 12 | B14: Follow Aqua Boda | C14: Snorkeling (Coral Reef) | D14: 2022-03-01 | E14: 2022-03-15 | F14: 37 | G14: 760 | I14: 280 | J14: =28+76 -> 104 | M14: -28.08 | N14: 907.92 | O14: L.E
A15: =IF($B15="","",SUBTOTAL(3,$B$3:B15)) -> 13 | B15: Follow Aqua Boda | C15: National Park Fees | D15: 2022-03-01 | E15: 2022-03-15 | F15: 37 F | H15: 20 | L15: 0 | M15: 0 | N15: 20 | O15: $
A16: =IF($B16="","",SUBTOTAL(3,$B$3:B16)) -> 14 | B16: Memo Travel Company | C16: Transfer (AirPort) | D16: 2022-03-01 | E16: 2022-03-15 | F16: 23256 | G16: 93875 | J16: 9387.5 | L16: 11828.25 | M16: -2534.625 | N16: 93781.125 | O16: L.E
A17: =IF($B17="","",SUBTOTAL(3,$B$3:B17)) -> 15 | B17: Memo Travel Company | C17: Tips | D17: 2022-03-01 | E17: 2022-03-15 | F17: 23256 | G17: 9750 | L17: 0 | M17: 0 | N17: 9750 | O17: L.E
A18: =IF($B18="","",SUBTOTAL(3,$B$3:B18)) -> 16 | B18: Memo Travel Company | C18: Transfer (Excursion) | D18: 2022-03-01 | E18: 2022-03-15 | F18: 23257 | G18: 75090 | J18: 7509 | L18: 9461.34 | M18: -2027.43 | N18: 75014.91 | O18: L.E
A19: =IF($B19="","",SUBTOTAL(3,$B$3:B19)) -> 17 | B19: Memo Travel Company | C19: Tips | D19: 2022-03-01 | E19: 2022-03-15 | F19: 23257 | G19: 7430 | L19: 0 | M19: 0 | N19: 7430 | O19: L.E
A20: =IF($B20="","",SUBTOTAL(3,$B$3:B20)) -> 18 | B20: Memo Travel Company | C20: Flight Crew | D20: 2022-03-01 | E20: 2022-03-15 | F20: 23255 | G20: 3090 | J20: 309 | L20: 389.34 | M20: -83.43 | N20: 3086.91 | O20: L.E
A21: =IF($B21="","",SUBTOTAL(3,$B$3:B21)) -> 19 | B21: Memo Travel Company | C21: Tips | D21: 2022-03-01 | E21: 2022-03-15 | F21: 23255 | G21: 445 | L21: 0 | M21: 0 | N21: 445 | O21: L.E
A22: Total | G22: =SUM(G3:G21) -> 310300 | H22: =SUM(H3:H21) -> 1175 | I22: 2220 | J22: 29028.5 | K22: 36 | L22: 36642.83 | M22: -7880.115 | N22: 313393.215
